fUSD/lending_fUSD_20240820
["ID","MTS","AMOUNT","RATE_DAILY","PERIOD"]
[335337502,1724124639892,-500.0,0.00010999,2]
[335337503,1724124639901,-500.0,0.00010999,2]
[335337504,1724124639910,-500.0,0.00010999,2]
[335337505,1724124639919,-461.03905878,0.00010999,2]
[335337506,1724124639928,-156.45937811,0.00010999,2]
[335337507,1724124639937,-205.59376051,0.00010999,2]
[335337508,1724124639947,-770.0,0.00011,2]
[335337509,1724124639955,-475323.95024436,0.00011,2]
[335337510,1724124639965,-6110807.59115733,0.00011,2]
[335337511,1724124639977,-17822.49496353,0.00011,2]
[335337512,1724124639987,-698.46349581,0.00011,2]
[335337513,1724124639998,-34677.686,0.00011,2]
[335337514,1724124640009,-582.24356216,0.00011,2]
[335337515,1724124640022,-351.92,0.00011,2]
[335337516,1724124640033,-1553.4252,0.00011,2]
[335337517,1724124640044,-561.82928208,0.00011,2]
[335337518,1724124640062,-290.23504352,9.91e-05,2]
[335337519,1724124640071,-132.86697756,0.00011,2]
[335337520,1724124640082,-2510.72,0.00011,2]
[335337521,1724124640093,-11775.33259882,0.00011,2]
[335337522,1724124640793,-1610.53421101,0.00011,2]
[335337523,1724124640805,-296.33106017,0.00011,2]
[335337524,1724124640815,-179240.95075078,0.00011,2]
[335337525,1724124640826,-2939.41147715,0.00011,2]
[335337526,1724124641032,-205.47932467,0.00010899,2]
[335337527,1724124641042,-106.83668283,0.00010993,2]
[335337528,1724124641053,-888.00225574,0.00010993,2]
[335337529,1724124641065,-262.19475298,0.00010993,2]
[335337530,1724124641074,-91537.04346929,0.00011,2]
[335337531,1724124641085,-83111.61462018,0.00011,2]
[335337532,1724124641096,-3200.6762738,0.00011,2]
[335337533,1724124641106,-25549.94544281,0.00011,2]
[335337534,1724124641118,-4832.22556236,0.00011,2]
[335337535,1724124641129,-9920.5,0.00011,2]
[335337536,1724124641139,-492.0,0.00011,2]
[335337537,1724124641150,-3255.0,0.00011,2]
[335337538,1724124641161,-1261.85492,0.00011,2]
[335337539,1724124641172,-4355.31238879,0.00011,2]
[335337540,1724124641183,-533.1,0.00011,2]
[335337541,1724124641267,-256.89893274,0.00011,2]
[335337542,1724124641279,-588.39048859,0.00011,2]
[335337543,1724124641291,-3048.32772882,0.00011,2]
[335337544,1724124641301,-475.21517826,0.00011,2]
[335337545,1724124641313,-865.43927189,0.00011,2]
[335337546,1724124641323,-670.7,0.00011,2]
[335337547,1724124641334,-4010.853084,0.00011,2]
[335337669,1724124643464,-290.2350435,9.926e-05,2]
[335337671,1724124643477,-420.64850572,0.00010899,2]
[335337672,1724124643486,-600.01301007,0.00011,2]
[335337673,1724124643498,-5557.37127244,0.00011,2]
[335337675,1724124643663,-735.915,0.00011,2]
[335337676,1724124643675,-17372.54439704,0.00011,2]
[335337678,1724124644211,-1058.99644522,0.00011,2]
[335337679,1724124644222,-26274.71108915,0.00011,2]
[335337680,1724124644253,-3710.77409397,0.00011,2]
[335337681,1724124644263,-2833.13889606,0.00011,2]
[335337682,1724124644276,-529.47443216,0.00011,2]
[335337683,1724124644287,-297.95376087,0.00011,2]
[335337684,1724124644297,-293.30521316,0.00011,2]
[335337685,1724124644310,-332.37508255,0.00011,2]
[335337686,1724124644322,-733.89929417,0.00011,2]
[335337687,1724124644334,-432.0,0.00011,2]
[335337688,1724124646491,-420.64850572,0.00010899,2]
[335337689,1724124646500,-1205.0,0.00010961,2]
[335337690,1724124646510,-6481.25149422,0.00011,2]
[335337694,1724124646751,-12124.92729599,0.00011,2]
[335337695,1724124646762,-459.59863268,0.00011,2]
[335337696,1724124646773,-374.8274,0.00011,2]
[335337697,1724124646784,-67370.5646394,0.00011,2]
[335337701,1724124835338,10539.83198925,9.861e-05,2]
[335337702,1724124868640,207.19,9.641e-05,2]
[335337703,1724124907885,204.39,9.639e-05,2]
[335337704,1724124931268,155.24712705,9.899e-05,2]
[335337705,1724124952672,577.37,8.219e-05,2]
[335337707,1724125083889,1000.0,9.675e-05,2]
[335337708,1724125089466,745.37,9.678e-05,2]
[335337711,1724125347198,172.74,9.686e-05,2]
[335337712,1724125380015,204.39,9.69e-05,2]
[335337714,1724125429628,548.5,8.219e-05,2]
[335337715,1724125575517,200.0,9.711e-05,2]
[335337725,1724125776510,304.17876895,9.899e-05,2]
[335337734,1724125831424,-298.46,9.941e-05,2]
[335337735,1724125831436,-342.66565863,9.941e-05,2]
[335337736,1724125831445,-317.75271204,9.988e-05,2]
[335337737,1724125831456,-332.60014806,9.988e-05,2]
[335337738,1724125831467,-2692.91385194,9.999e-05,2]
[335337739,1724125831481,-264.63989011,9.999e-05,2]
[335337740,1724125831492,-599.46000008,9.999e-05,2]
[335337741,1724125831503,-4473.10212446,9.999e-05,2]
[335337742,1724125831515,-4383.83800905,9.999e-05,2]
[335337743,1724125831535,-37586.04612436,9.999e-05,2]
[335337744,1724125831545,-296.08389113,9.999e-05,2]
[335337745,1724125831554,-2248.47167659,0.0001,2]
[335337746,1724125831563,-150.0,0.00010017,2]
[335337747,1724125831572,-1100.0,0.00010018,2]
[335337748,1724125831581,-500.0,0.00010022,2]
[335337749,1724125831590,-500.0,0.00010042,2]
[335337750,1724125831599,-300.0,0.00010046,2]
[335337751,1724125831608,-167.32101258,0.00010047,2]
[335337752,1724125831617,-700.9,0.00010047,2]
[335337753,1724125831627,-2356.57,0.00010047,2]
[335337754,1724125831636,-1100.0,0.00010049,2]
[335337755,1724125831645,-150.0,0.00010055,2]
[335337756,1724125831654,-200.0,0.000101,3]
[335337757,1724125831663,-500.0,0.00010111,2]
[335337758,1724125831673,-2500.0,0.0001014,2]
[335337759,1724125831682,-2500.0,0.00010142,2]
[335337760,1724125831691,-500.0,0.00010145,2]
[335337761,1724125831700,-500.0,0.00010173,2]
[335337762,1724125831710,-2300.0,0.00010178,2]
[335337763,1724125831719,-500.0,0.00010182,2]
[335337764,1724125831728,-500.0,0.00010196,2]
[335337765,1724125831739,-500.0,0.000102,3]
[335337766,1724125831748,-800.0,0.000103,3]
[335337767,1724125831931,-2300.0,0.00010332,2]
[335337768,1724125831940,-2500.0,0.00010369,2]
[335337769,1724125831949,-1100.0,0.000104,3]
[335337770,1724125831959,-500.0,0.00010403,2]
[335337771,1724125831968,-2300.0,0.00010431,2]
[335337772,1724125831978,-500.0,0.00010447,2]
[335337773,1724125831987,-548.5,0.0001046,2]
[335337774,1724125831996,-5901.40305106,0.00010471,2]
[335337775,1724125832005,-1100.0,0.00010474,2]
[335337776,1724125832014,-2300.0,0.00010494,2]
[335337777,1724125832023,-1300.0,0.000105,3]
[335337778,1724125832032,-2343.53124984,0.00010505,2]
[335337779,1724125832042,-500.0,0.00010552,2]
[335337780,1724125832051,-687.53484988,0.00010566,2]
[335337781,1724125832061,-500.0,0.00010578,2]
[335337782,1724125832070,-500.0,0.00010581,2]
[335337783,1724125832080,-200.0,0.000106,3]
[335337784,1724125832089,-500.0,0.0001061,2]
[335337785,1724125832098,-2500.0,0.00010616,2]
[335337786,1724125832107,-500.0,0.00010699,2]
[335337787,1724125832117,-629.0037061,0.00010699,2]
[335337788,1724125832126,-2842.18133538,0.00010699,2]
[335337789,1724125832135,-200.0,0.000107,3]
[335337790,1724125832144,-1300.59773488,0.00010713,2]
[335337791,1724125832153,-500.0,0.00010784,2]
[335337792,1724125832162,-825.9845,0.000108,2]
[335337793,1724125832172,-200.0,0.000108,3]
[335337794,1724125832181,-272.44099999,0.00010835,2]
[335337795,1724125832190,-207.19,0.00010846,2]
[335337796,1724125832199,-1074.78314637,0.00010852,2]
[335337797,1724125832208,-818.326,0.00010861,2]
[335337798,1724125832218,-14653.6761,0.00010861,2]
[335337799,1724125832227,-500.0,0.00010878,2]
[335337800,1724125832236,-500.0,0.00010882,2]
[335337801,1724125832245,-1000.0,0.00010885,2]
[335337802,1724125832254,-557.99776162,0.00010888,2]
[335337803,1724125832263,-155.0,0.00010888,2]
[335337804,1724125832272,-760.69761,0.0001089,2]
[335337805,1724125832281,-500.0,0.00010897,2]
[335337806,1724125832291,-7500.0,0.00010899,2]
[335337807,1724125832300,-155.68216023,0.00010899,2]
[335337808,1724125832309,-155.68216022,0.00010899,2]
[335337809,1724125832318,-155.68216022,0.00010899,2]
[335337810,1724125832328,-155.68216022,0.00010899,2]
[335337811,1724125832337,-155.68216022,0.00010899,2]
[335337812,1724125832346,-500.0,0.00010899,2]
[335337813,1724125832355,-155.68216022,0.00010899,2]
[335337814,1724125832365,-155.68216022,0.00010899,2]
[335337815,1724125832374,-155.68216022,0.00010899,2]
[335337816,1724125832383,-155.68216022,0.00010899,2]
[335337817,1724125832393,-154.0,0.000109,2]
[335337818,1724125832402,-1714.2671,0.000109,2]
[335337819,1724125832411,-15050.2465,0.000109,2]
[335337820,1724125832421,-1310.4205,0.000109,2]
[335337821,1724125832430,-155.68216022,0.000109,2]
[335337822,1724125832439,-200.0,0.000109,3]
[335337823,1724125832449,-500.0,0.00010906,2]
[335337824,1724125832458,-2300.0,0.0001091,2]
[335337825,1724125832473,-169.74,0.00010924,2]
[335337826,1724125832483,-200.0,0.00010925,2]
[335337827,1724125832493,-2500.0,0.0001093,2]
[335337828,1724125832502,-155.0,0.00010949,2]
[335337829,1724125832512,-250.0,0.00010959,2]
[335337830,1724125832521,-484.37,0.00010959,2]
[335337831,1724125832530,-623.0,0.00010961,2]
[335337832,1724125832540,-1923.0,0.00010961,2]
[335337833,1724125832550,-1258.0,0.00010961,2]
[335337834,1724125832560,-1543.0,0.00010961,2]
[335337835,1724125832570,-721.0,0.00010961,2]
[335337836,1724125832580,-810.0,0.00010961,2]
[335337837,1724125832589,-556.0,0.00010961,2]
[335337838,1724125832599,-447.0,0.00010961,2]
[335337839,1724125832609,-150.0,0.00010961,2]
[335337840,1724125832618,-1077.0,0.00010961,2]
[335337841,1724125832628,-551.0,0.00010961,2]
[335337842,1724125832638,-1896.0,0.00010961,2]
[335337843,1724125832651,-150.0,0.00010961,2]
[335337844,1724125832661,-1165.0,0.00010961,2]
[335337845,1724125832672,-3319.0,0.00010961,2]
[335337846,1724125832682,-247.0,0.00010961,2]
[335337847,1724125832692,-764.0,0.00010961,2]
[335337848,1724125832703,-5846.0,0.00010961,2]
[335337849,1724125832712,-3727.0,0.00010961,2]
[335337850,1724125832730,-289.0,0.00010961,2]
[335337851,1724125832740,-150.0,0.00010961,2]
[335337852,1724125832750,-1205.0,0.00010961,2]
[335337853,1724125832763,-500.0,0.00010964,2]
[335337854,1724125832773,-1100.0,0.00010965,2]
[335337855,1724125832783,-758.749462,0.00010994,2]
[335337856,1724125832793,-741.7339252,0.00010997,2]
[335337857,1724125832806,-500.0,0.00010998,2]
[335337858,1724125832815,-500.0,0.00010998,2]
[335337859,1724125832825,-503.24253488,0.00010998,2]
[335337860,1724125832834,-500.0,0.00010998,2]
[335337861,1724125832845,-1858.84,0.00010998,2]
[335337862,1724125832854,-1354.82,0.00010998,2]
[335337863,1724125832863,-500.0,0.00010998,2]
[335337864,1724125832874,-500.0,0.00010998,2]
[335337865,1724125832885,-500.0,0.00010998,2]
[335337866,1724125832894,-500.0,0.00010998,2]
[335337867,1724125832905,-500.0,0.00010998,2]
[335337868,1724125832914,-370.67009226,0.00010998,2]
[335337869,1724125832924,-150.01,0.00010999,2]
[335337870,1724125832935,-500.0,0.00010999,2]
[335337871,1724125832945,-500.0,0.00010999,2]
[335337872,1724125832955,-500.0,0.00010999,2]
[335337873,1724125832971,-500.0,0.00010999,2]
[335337874,1724125832982,-500.0,0.00010999,2]
[335337875,1724125832991,-500.0,0.00010999,2]
[335337876,1724125833001,-500.0,0.00010999,2]
[335337877,1724125833010,-500.0,0.00010999,2]
[335337878,1724125833020,-500.0,0.00010999,2]
[335337879,1724125833030,-500.0,0.00010999,2]
[335337880,1724125833041,-500.0,0.00010999,2]
[335337881,1724125833051,-500.0,0.00010999,2]
[335337882,1724125833061,-500.0,0.00010999,2]
[335337883,1724125833072,-500.0,0.00010999,2]
[335337884,1724125833081,-500.0,0.00010999,2]
[335337885,1724125833091,-500.0,0.00010999,2]
[335337886,1724125833101,-301.4029093,0.00010999,2]
[335337887,1724125833111,-1223.86,0.00010999,2]
[335337888,1724125833120,-1223.86,0.00010999,2]
[335337889,1724125833130,-1223.86,0.00010999,2]
[335337890,1724125833139,-1223.86,0.00010999,2]
[335337891,1724125833149,-1223.86,0.00010999,2]
[335337892,1724125833158,-1223.86,0.00010999,2]
[335337893,1724125833168,-1223.86,0.00010999,2]
[335337894,1724125833178,-1223.86,0.00010999,2]
[335337895,1724125833187,-1223.86,0.00010999,2]
[335337896,1724125833197,-1223.86,0.00010999,2]
[335337897,1724125833206,-1223.86,0.00010999,2]
[335337898,1724125833219,-1223.86,0.00010999,2]
[335337899,1724125833228,-1223.86,0.00010999,2]
[335337900,1724125833237,-1223.86,0.00010999,2]
[335337901,1724125833247,-1223.86,0.00010999,2]
[335337902,1724125833256,-1223.86,0.00010999,2]
[335337903,1724125833265,-1223.86,0.00010999,2]
[335337904,1724125833275,-1223.86,0.00010999,2]
[335337905,1724125833284,-1223.86,0.00010999,2]
[335337906,1724125833295,-1223.86,0.00010999,2]
[335337907,1724125833304,-1223.86,0.00010999,2]
[335337908,1724125833314,-1223.86,0.00010999,2]
[335337909,1724125833323,-1223.86,0.00010999,2]
[335337910,1724125833332,-1224.03843851,0.00010999,2]
[335337911,1724125833342,-500.0,0.00010999,2]
[335337912,1724125833352,-500.0,0.00010999,2]
[335337913,1724125833361,-500.0,0.00010999,2]
[335337914,1724125833370,-500.0,0.00010999,2]
[335337915,1724125833380,-500.0,0.00010999,2]
[335337916,1724125833389,-500.0,0.00010999,2]
[335337917,1724125833399,-500.0,0.00010999,2]
[335337918,1724125833408,-500.0,0.00010999,2]
[335337919,1724125833417,-500.0,0.00010999,2]
[335337920,1724125833427,-500.0,0.00010999,2]
[335337921,1724125833436,-500.0,0.00010999,2]
[335337922,1724125833448,-500.0,0.00010999,2]
[335337923,1724125833481,-500.0,0.00010999,2]
[335337924,1724125833536,-500.0,0.00010999,2]
[335337925,1724125833592,-500.0,0.00010999,2]
[335337926,1724125833633,-500.0,0.00010999,2]
[335337927,1724125833643,-500.0,0.00010999,2]
[335337928,1724125833653,-500.0,0.00010999,2]
[335337929,1724125833664,-477.42402357,0.00010999,2]
[335337930,1724125833675,-500.0,0.00010999,2]
[335337931,1724125833685,-500.0,0.00010999,2]
[335337932,1724125833695,-500.0,0.00010999,2]
[335337933,1724125833706,-500.0,0.00010999,2]
[335337934,1724125833718,-500.0,0.00010999,2]
[335337935,1724125833729,-500.0,0.00010999,2]
[335337936,1724125833739,-500.0,0.00010999,2]
[335337937,1724125833749,-500.0,0.00010999,2]
[335337938,1724125833758,-500.0,0.00010999,2]
[335337939,1724125833768,-500.0,0.00010999,2]
[335337940,1724125833778,-500.0,0.00010999,2]
[335337941,1724125833788,-500.0,0.00010999,2]
[335337942,1724125833800,-500.0,0.00010999,2]
[335337943,1724125833810,-500.0,0.00010999,2]
[335337944,1724125833819,-500.0,0.00010999,2]
[335337945,1724125833829,-500.0,0.00010999,2]
[335337946,1724125833838,-500.0,0.00010999,2]
[335337947,1724125833848,-500.0,0.00010999,2]
[335337948,1724125833857,-500.0,0.00010999,2]
[335337949,1724125833868,-500.0,0.00010999,2]
[335337950,1724125833877,-500.0,0.00010999,2]
[335337951,1724125833887,-460.99116714,0.00010999,2]
[335337952,1724125833896,-500.0,0.00010999,2]
[335337953,1724125833906,-500.0,0.00010999,2]
[335337954,1724125833916,-500.0,0.00010999,2]
[335337955,1724125833925,-500.0,0.00010999,2]
[335337956,1724125833935,-500.0,0.00010999,2]
[335337957,1724125833944,-500.0,0.00010999,2]
[335337958,1724125833953,-500.0,0.00010999,2]
[335337959,1724125833965,-500.0,0.00010999,2]
[335337960,1724125833974,-500.0,0.00010999,2]
[335337961,1724125833984,-500.0,0.00010999,2]
[335337962,1724125833993,-500.0,0.00010999,2]
[335337963,1724125834003,-500.0,0.00010999,2]
[335337964,1724125834013,-500.0,0.00010999,2]
[335337965,1724125834022,-500.0,0.00010999,2]
[335337966,1724125834031,-500.0,0.00010999,2]
[335337967,1724125834041,-500.0,0.00010999,2]
[335337968,1724125834050,-500.0,0.00010999,2]
[335337969,1724125834060,-550.12171856,0.00010999,2]
[335337970,1724125834069,-500.0,0.00010999,2]
[335337971,1724125834078,-500.0,0.00010999,2]
[335337972,1724125834088,-500.0,0.00010999,2]
[335337973,1724125834097,-500.0,0.00010999,2]
[335337974,1724125834106,-500.0,0.00010999,2]
[335337975,1724125834115,-500.0,0.00010999,2]
[335337976,1724125834125,-500.0,0.00010999,2]
[335337977,1724125834134,-500.0,0.00010999,2]
[335337978,1724125834144,-500.0,0.00010999,2]
[335337979,1724125834153,-500.0,0.00010999,2]
[335337980,1724125834163,-500.0,0.00010999,2]
[335337981,1724125834172,-500.0,0.00010999,2]
[335337982,1724125834182,-500.0,0.00010999,2]
[335337983,1724125834191,-500.0,0.00010999,2]
[335337984,1724125834201,-500.0,0.00010999,2]
[335337985,1724125834210,-500.0,0.00010999,2]
[335337986,1724125834221,-500.0,0.00010999,2]
[335337987,1724125834230,-500.0,0.00010999,2]
[335337988,1724125834240,-500.0,0.00010999,2]
[335337989,1724125834250,-500.0,0.00010999,2]
[335337990,1724125834259,-540.69254763,0.00010999,2]
[335337991,1724125834269,-1170.87,0.00010999,2]
[335337992,1724125834278,-1170.87,0.00010999,2]
[335337993,1724125834288,-1170.87,0.00010999,2]
[335337994,1724125834297,-1170.87,0.00010999,2]
[335337995,1724125834306,-1170.87,0.00010999,2]
[335337996,1724125834315,-1170.87,0.00010999,2]
[335337997,1724125834325,-1170.87,0.00010999,2]
[335337998,1724125834335,-1170.87,0.00010999,2]
[335337999,1724125834344,-1170.87,0.00010999,2]
[335338000,1724125834353,-1170.87,0.00010999,2]
[335338001,1724125834362,-1170.87,0.00010999,2]
[335338002,1724125834372,-1170.87,0.00010999,2]
[335338003,1724125834381,-1170.87,0.00010999,2]
[335338004,1724125834390,-1170.87,0.00010999,2]
[335338005,1724125834399,-1170.87,0.00010999,2]
[335338006,1724125834408,-1170.87,0.00010999,2]
[335338007,1724125834418,-1170.87,0.00010999,2]
[335338008,1724125834427,-1170.87,0.00010999,2]
[335338009,1724125834437,-1170.87,0.00010999,2]
[335338010,1724125834446,-1170.87,0.00010999,2]
[335338011,1724125834456,-1170.87,0.00010999,2]
[335338012,1724125834467,-1170.87,0.00010999,2]
[335338013,1724125834477,-1170.87,0.00010999,2]
[335338014,1724125834487,-1171.10857487,0.00010999,2]
[335338015,1724125834496,-1692.62,0.00010999,2]
[335338016,1724125834507,-1692.62,0.00010999,2]
[335338017,1724125834516,-1692.62,0.00010999,2]
[335338018,1724125834526,-1692.62,0.00010999,2]
[335338019,1724125834536,-1692.62,0.00010999,2]
[335338020,1724125834546,-1692.62,0.00010999,2]
[335338021,1724125834555,-1589.68655935,0.00010999,2]
[335338022,1724125834577,-102.93344065,0.00010999,2]
[335338023,1724125834587,-349.35527321,0.00010999,2]
[335338024,1724125834615,-1343.26472679,0.00010999,2]
[335338025,1724125834625,-1146.306662,0.00010999,2]
[335338026,1724125834636,-546.313338,0.00010999,2]
[335338027,1724125834645,-185.49559534,0.00010999,2]
[335338028,1724125834657,-1507.12440466,0.00010999,2]
[335338029,1724125834666,-1692.62,0.00010999,2]
[335338030,1724125834676,-1692.62,0.00010999,2]
[335338031,1724125834685,-1030.87538407,0.00010999,2]
[335338032,1724125834697,-661.74461593,0.00010999,2]
[335338033,1724125834707,-1692.62,0.00010999,2]
[335338034,1724125834717,-1692.62,0.00010999,2]
[335338035,1724125834727,-1692.62,0.00010999,2]
[335338036,1724125834736,-1692.62,0.00010999,2]
[335338037,1724125834747,-1692.62,0.00010999,2]
[335338038,1724125834756,-1692.62,0.00010999,2]
[335338039,1724125834766,-456.40362961,0.00010999,2]
[335338042,1724125837467,-893.1069524,0.00010799,2]
[335338043,1724125837476,-348.57142796,0.00010961,2]
[335338044,1724125837523,-1325.42857204,0.00010961,2]
[335338045,1724125837532,-200.0,0.00010973,2]
[335338046,1724125837542,-155.2566051,0.00010989,2]
[335338047,1724125837551,-5916.05162728,0.00010994,2]
[335338048,1724125837682,-144.51554772,0.00010994,2]
[335338049,1724125837692,-1236.21637039,0.00010999,2]
[335338050,1724125837702,-1692.62,0.00010999,2]
[335338051,1724125837711,-1692.62,0.00010999,2]
[335338052,1724125837722,-1692.62,0.00010999,2]
[335338053,1724125837731,-1692.64249644,0.00010999,2]
[335338054,1724125837741,-960.8,0.00010999,2]
[335338055,1724125837750,-960.8,0.00010999,2]
[335338056,1724125837759,-960.8,0.00010999,2]
[335338057,1724125837769,-960.8,0.00010999,2]
[335338058,1724125837779,-960.8,0.00010999,2]
[335338059,1724125837790,-960.8,0.00010999,2]
[335338060,1724125837804,-960.8,0.00010999,2]
[335338061,1724125837813,-960.8,0.00010999,2]
[335338062,1724125837823,-960.8,0.00010999,2]
[335338063,1724125837833,-960.8,0.00010999,2]
[335338064,1724125837842,-960.8,0.00010999,2]
[335338066,1724125837852,-960.8,0.00010999,2]
[335338068,1724125837862,-960.8,0.00010999,2]
[335338070,1724125837874,-960.8,0.00010999,2]
[335338071,1724125837884,-960.8,0.00010999,2]
[335338072,1724125837894,-960.8,0.00010999,2]
[335338073,1724125837903,-960.8,0.00010999,2]
[335338074,1724125837912,-960.8,0.00010999,2]
[335338075,1724125837922,-960.8,0.00010999,2]
[335338076,1724125837931,-960.8,0.00010999,2]
[335338077,1724125837940,-960.8,0.00010999,2]
[335338078,1724125837949,-960.8,0.00010999,2]
[335338079,1724125837959,-960.8,0.00010999,2]
[335338080,1724125837969,-960.891214,0.00010999,2]
[335338081,1724125837978,-2346.82,0.00010999,2]
[335338082,1724125837988,-2346.82,0.00010999,2]
[335338083,1724125837997,-2346.82,0.00010999,2]
[335338084,1724125838006,-2346.82,0.00010999,2]
[335338085,1724125838016,-2346.82,0.00010999,2]
[335338086,1724125838026,-2346.82,0.00010999,2]
[335338087,1724125838035,-2346.82,0.00010999,2]
[335338088,1724125838044,-2346.82,0.00010999,2]
[335338089,1724125838053,-2346.82,0.00010999,2]
[335338090,1724125838062,-2346.82,0.00010999,2]
[335338091,1724125838071,-2346.82,0.00010999,2]
[335338093,1724125838081,-2346.82,0.00010999,2]
[335338094,1724125838090,-2346.82,0.00010999,2]
[335338095,1724125838099,-2346.82,0.00010999,2]
[335338096,1724125838108,-2346.82,0.00010999,2]
[335338097,1724125838118,-2346.82,0.00010999,2]
[335338098,1724125838277,-2346.82,0.00010999,2]
[335338099,1724125838287,-2346.82,0.00010999,2]
[335338100,1724125838297,-2346.82,0.00010999,2]
[335338101,1724125838307,-2346.82,0.00010999,2]
[335338102,1724125838316,-2346.82,0.00010999,2]
[335338103,1724125838325,-2346.82,0.00010999,2]
[335338104,1724125838335,-2346.82,0.00010999,2]
[335338105,1724125838344,-2346.99523055,0.00010999,2]
[335338106,1724125838354,-334.16874863,0.00010999,2]
[335338107,1724125838363,-608.17,0.00010999,2]
[335338108,1724125838372,-608.17,0.00010999,2]
[335338109,1724125838382,-608.17,0.00010999,2]
[335338110,1724125838392,-608.17,0.00010999,2]
[335338111,1724125838401,-608.17,0.00010999,2]
[335338112,1724125838411,-608.17,0.00010999,2]
[335338113,1724125838420,-608.17,0.00010999,2]
[335338114,1724125838429,-608.17,0.00010999,2]
[335338115,1724125838438,-608.17,0.00010999,2]
[335338116,1724125838448,-608.17,0.00010999,2]
[335338117,1724125838456,-608.17,0.00010999,2]
[335338118,1724125838468,-608.17,0.00010999,2]
[335338119,1724125838477,-608.17,0.00010999,2]
[335338120,1724125838486,-608.17,0.00010999,2]
[335338121,1724125838496,-608.17,0.00010999,2]
[335338122,1724125838505,-608.17,0.00010999,2]
[335338123,1724125838514,-608.17,0.00010999,2]
[335338124,1724125838523,-608.17,0.00010999,2]
[335338125,1724125838532,-608.17,0.00010999,2]
[335338126,1724125838542,-608.17,0.00010999,2]
[335338127,1724125838551,-608.17,0.00010999,2]
[335338128,1724125838560,-608.17,0.00010999,2]
[335338129,1724125838569,-608.17,0.00010999,2]
[335338130,1724125838578,-608.37940022,0.00010999,2]
[335338131,1724125838588,-1041.97,0.00010999,2]
[335338132,1724125838597,-1041.97,0.00010999,2]
[335338133,1724125838607,-1041.97,0.00010999,2]
[335338134,1724125838616,-1041.97,0.00010999,2]
[335338135,1724125838625,-1041.97,0.00010999,2]
[335338136,1724125838634,-1041.97,0.00010999,2]
[335338137,1724125838644,-1041.97,0.00010999,2]
[335338138,1724125838653,-1041.97,0.00010999,2]
[335338139,1724125838662,-1041.97,0.00010999,2]
[335338140,1724125838671,-1041.97,0.00010999,2]
[335338141,1724125838681,-1041.97,0.00010999,2]
[335338142,1724125838690,-1041.97,0.00010999,2]
[335338143,1724125838700,-1041.97,0.00010999,2]
[335338144,1724125838710,-1041.97,0.00010999,2]
[335338145,1724125838720,-1041.97,0.00010999,2]
[335338146,1724125838730,-1041.97,0.00010999,2]
[335338147,1724125838740,-1041.97,0.00010999,2]
[335338148,1724125838749,-1041.97,0.00010999,2]
[335338149,1724125838758,-1041.97,0.00010999,2]
[335338150,1724125838767,-1041.97,0.00010999,2]
[335338151,1724125838776,-1041.97,0.00010999,2]
[335338152,1724125838785,-1041.97,0.00010999,2]
[335338153,1724125838796,-1041.97,0.00010999,2]
[335338154,1724125838807,-1042.17179407,0.00010999,2]
[335338155,1724125838816,-629.15,0.00010999,2]
[335338156,1724125838825,-629.15,0.00010999,2]
[335338157,1724125838835,-629.15,0.00010999,2]
[335338158,1724125838844,-629.15,0.00010999,2]